Cogmind - Beta 16.1 @@@ ROGUE MODE // 2026.03.21 @ 22:21:15 // Winter2019/RPGLIKE Player: john Result: Destroyed by S-10 Pest with Light Assault Rifle Performance ------------- Evolutions (1) 500 Regions Visited (2) 400 Robots Destroyed (13) 65 Value Destroyed (294) 294 Prototype IDs (0) 0 Alien Tech Used (0) 0 Bonus (0) 0 TOTAL SCORE: 1259 Bonus ------- None Cogmind --------- Core Integrity 0/900 Matter 290/300 Energy 135/150 System Corruption 0% Temperature Warning (350) Movement Walking (120) Location -9/Materials Parts ------- > --- POWER (2) -------- Light Ion Engine Light Ion Engine > --- PROPULSION (2) --- Aluminum Leg Aluminum Leg > --- UTILITY (2) ------ Structural Scanner Improved Terrain Scanner > --- WEAPON (1) ------- Particle Cannon > --- INVENTORY (0) ---- (None) Peak State ------------ > --- POWER ------------ Light Ion Engine Light Ion Engine > --- PROPULSION ------- Aluminum Leg Aluminum Leg > --- UTILITY ---------- Structural Scanner Improved Terrain Scanner > --- WEAPON ----------- Particle Cannon > --- INVENTORY -------- (None) [Rating: 10] Favorites ----------- Power Light Ion Engine Engine Light Ion Engine Propulsion Aluminum Leg Leg Aluminum Leg Utility Improved Terrain Scanner Device Improved Terrain Scanner Weapon Light Assault Rifle Energy Gun EM Pulse Gun Energy Cannon Particle Cannon Ballistic Gun Light Assault Rifle Build | -11 -10 -9 ------- Run | Yrd Mat Mat Slots Evolved 3 | 3 . . Power 1 | 1 . . Propulsion 1 | 1 . . Utility 1 | 1 . . Weapon . | . . . Parts Attached 10 | 7 3 . Power 2 | 2 . . Engine 2 | 2 . . Core . | . . . Reactor . | . . . Propulsion 2 | 2 . . Treads . | . . . Leg 2 | 2 . . Wheel . | . . . Hover . | . . . Flight . | . . . Utility 2 | 1 1 . Device 2 | 1 1 . Storage . | . . . Processor . | . . . Hackware . | . . . Protection . | . . . Artifact . | . . . Weapon 4 | 2 2 . Energy Gun 2 | 1 1 . Energy Cannon 1 | . 1 . Ballistic Gun 1 | 1 . . Ballistic Cannon . | . . . Launcher . | . . . Special Weapon . | . . . Impact Weapon . | . . . Slashing Weapon . | . . . Piercing Weapon . | . . . Special Melee Weapon . | . . . Unidentified Prototypes . | . . . Parts Lost . | . . . Power . | . . . Propulsion . | . . . Utility . | . . . Weapon . | . . . Highest Loss Streak . | . . . To Critical Strikes . | . . . Average Backups . | . . . Power . | . . . Propulsion . | . . . Utility . | . . . Weapon . | . . . Tool/Special . | . . . Unused Backups . | . . . Power . | . . . Propulsion . | . . . Utility . | . . . Weapon . | . . . Tool/Special . | . . . Average Slot Usage (%) 94 | . 92 100 Engine 27 | . 27 28 Leg 28 | . 28 28 Device 23 | . 21 28 Energy Gun 1 | . 1 . Energy Cannon 5 | . 2 14 Ballistic Gun 7 | . 10 . Peak Build Rating 10 | 8 10 10 Average Rating 8 | 5 8 10 On Entrance 6 | . 8 10 Avg Prop Armor Cover (%) . | . . . Naked Turns . | . . . Heaviest Build 12 | 9 12 12 Greatest Support 20 | 20 20 20 Greatest Overweight (x) . | . . . Average Overweight (x) . | . . . Largest Inventory Capacity . | . . . Average Capacity . | . . . Most Carried . | . . . Average Carried . | . . . Final Capacity . | . . . Final Carried . | . . . Class Distribution -------------------- 100% | Mutant Dominant Class ---------------- Mutant | -10/Materials Mutant | -9/Materials Resources | -11 -10 -9 ----------- Run | Yrd Mat Mat Matter Collected 342 | 205 137 . Remotely . | . . . Salvage Created 391 | 107 284 . Parts 30 | 6 21 3 Haulers Intercepted . | . . . Recyclers Shooed . | . . . Parts Field Recycled . | . . . Retrieved Matter . | . . . Parts Self-Destructed . | . . . Prevented . | . . . Parts Restored . | . . . Kills | -11 -10 -9 ------- Run | Yrd Mat Mat Combat Hostiles Destroyed 9 | . 8 1 Guns 7 | . 7 . Cannons 2 | . 1 1 Classes Destroyed 5 | 2 3 . Tunneler 2 | 2 . . Recycler 1 | 1 . . Watcher 1 | . 1 . Swarmer 2 | . 1 1 Grunt 7 | . 7 . Best Kill Streak 4 | 2 4 1 Combat Bots Only 4 | . 4 1 Max Kills in Single Turn 1 | 1 1 1 Gunslinging . | . . . Exploded . | . . . Melee . | . . . Uniques/NPCs Destroyed . | . . . Combat | -11 -10 -9 -------- Run | Yrd Mat Mat Hostile Shots Fired 170 | . 121 49 Missed 45 | . 36 9 Hits 125 | . 85 40 Projectile 125 | . 85 40 Critical Strikes 1 | . . 1 Damage Taken 1267 | 32 895 340 Core 1043 | 24 743 276 Absorbed by Shields . | . . . Redirected to Core 711 | 24 479 208 Core Remaining (%) 63 | 97 30 . Volleys Fired 89 | 11 67 11 Largest 1 | 1 1 1 Hottest 68 | 40 68 68 Shots Fired 89 | 11 67 11 Gun 64 | 11 53 . Cannon 25 | . 14 11 Launcher . | . . . Special . | . . . Kinetic 42 | . 42 . Thermal 36 | . 25 11 Explosive . | . . . Electromagnetic 11 | 11 . . Robot Hit Streak 6 | 4 6 2 Robot Miss Streak 6 | 1 4 6 Penetration Max . | . . . Secondary Targets . | . . . Shots Hit Robots 51 | 9 38 4 Core Hits 24 | 4 19 1 Critical Kills . | . . . Critical Parts Destroyed 1 | . 1 . Critical Strikes 1 | . 1 . Destroy 1 | . 1 . Melee Attacks . | . . . Impact . | . . . Slashing . | . . . Piercing . | . . . Sneak Attacks . | . . . Combat Hostiles . | . . . Follow-up Attacks . | . . . Damage Inflicted 702 | 148 433 121 Guns 408 | 100 308 . Cannons 246 | . 125 121 Explosions 48 | 48 . . Melee . | . . . Ramming . | . . . Kinetic 230 | . 230 . Thermal 372 | 48 203 121 Explosive . | . . . Electromagnetic 100 | 100 . . Impact . | . . . Slashing . | . . . Piercing . | . . . Highest Corruption . | . . . Average Corruption . | . . . Corruption Purged . | . . . Corruption Blocked . | . . . Overload Shots . | . . . Overflow Damage . | . . . Projectiles . | . . . Explosions . | . . . Melee . | . . . Knockbacks . | . . . Impact . | . . . Kinetic . | . . . Secondary . | . . . Self-Inflicted Damage 33 | 33 . . Shots 1 | 1 . . Rammed . | . . . Targets Rammed . | . . . Kicked . | . . . Crushed . | . . . Highest Temperature 371 | 70 371 350 Average Temperature 110 | 31 112 207 Received Heat Transfer 378 | . 378 . Effects 5 | . 3 2 Shutdowns 2 | . 1 1 Energy Bleed 2 | . 1 1 Interference 1 | . 1 . Siege Activations . | . . . Martial Activations . | . . . Shielding Activations . | . . . Robots Disrupted . | . . . Combat Hostiles . | . . . Robots Corrupted . | . . . Combat Hostiles . | . . . Parts Fried 1 | 1 . . Impact Corruptions . | . . . Robots Melted . | . . . Combat Hostiles . | . . . Parts Melted 1 | . 1 . Heat Transferred 669 | 50 397 222 Parts Sabotaged . | . . . Parts Stolen . | . . . Parts Stripped . | . . . Power Chain Reactions 1 | 1 . . Alert | -11 -10 -9 ------- Run | Yrd Mat Mat Maximum Alert Level . | . . . Low Security (%) 100 | 100 100 100 Level 1 . | . . . Level 2 . | . . . Level 3 . | . . . Level 4 . | . . . Level 5 . | . . . High Security . | . . . Max Security . | . . . Peak Influence 122 | 5 122 46 Initial 46 | . . 46 Average 25 | 1 32 21 Influence Increases 247 | 15 212 20 Destroy 0b10 Robot/C 180 | . 160 20 Destroy 0b10 Robot/NC 20 | 15 5 . Destroy Leader 32 | . 32 . Lose Combat Pursuer 15 | . 15 . Influence Decreases 227 | 15 100 112 Entered New Map 66 | . . 66 Time Decay 161 | 15 100 46 Squads Dispatched 2 | . 2 . Investigation 1 | . 1 . Extermination . | . . . Reinforcement 1 | . 1 . Assault . | . . . Garrison . | . . . Intercept . | . . . Searches Triggered . | . . . Construction Impeded . | . . . Haulers Reinforced . | . . . Active Scanning Responses . | . . . Cargo Convoy Interrupts . | . . . Stealth | -11 -10 -9 --------- Run | Yrd Mat Mat Distress Signals 3 | . 3 . Communications Jammed . | . . . Distress Signals . | . . . Times Spotted 23 | . 19 4 Peak Tracking Total 6 | . 6 4 Tactical Retreats 1 | . 1 . Traps | -11 -10 -9 ------- Run | Yrd Mat Mat Traps Triggered 1 | . 1 . Indirectly . | . . . Trap Hack Attempts . | . . . Triggered . | . . . Disarmed . | . . . Reprogrammed . | . . . Reused . | . . . Traps Extracted . | . . . Installed . | . . . Triggered . | . . . Machines | -11 -10 -9 ---------- Run | Yrd Mat Mat Machines Disabled . | . . . Max in Single Turn . | . . . Machines Repaired . | . . . Machines Dismantled . | . . . Machines Sabotaged . | . . . Overloaded Fab Kills . | . . . Hacking | -11 -10 -9 --------- Run | Yrd Mat Mat Machines Accessed . | . . . Terminals . | . . . Fabricators . | . . . Repair Stations . | . . . Recycling Units . | . . . Scanalyzers . | . . . Garrison Access . | . . . Total Hacks . | . . . Successful . | . . . Failed . | . . . Catastrophic . | . . . Database Lockouts . | . . . Manual . | . . . Terminals . | . . . Fabricators . | . . . Repair Stations . | . . . Recycling Units . | . . . Scanalyzers . | . . . Garrison Access . | . . . Terminal Hacks . | . . . Fabricator Hacks . | . . . Repair Station Hacks . | . . . Recycling Unit Hacks . | . . . Scanalyzer . | . . . Garrison Access Hacks . | . . . Unauthorized Hacks . | . . . Terminals . | . . . Fabricators . | . . . Repair Stations . | . . . Recycling Units . | . . . Scanalyzers . | . . . Garrison Access . | . . . Data Cores Recovered . | . . . Used . | . . . Hacking Detections . | . . . Full Trace Events . | . . . Feedback Events . | . . . Feedback Blocked . | . . . Robot Schematics Acquired . | . . . Robots Built . | . . . Authchips . | . . . Time . | . . . Total Robot Build Rating . | . . . Part Schematics Acquired . | . . . Parts Built . | . . . Authchips . | . . . Time . | . . . Total Part Build Rating . | . . . Part Studies Acquired . | . . . Parts Repaired . | . . . Time . | . . . Parts Recycled . | . . . Recycled Matter . | . . . Retrieved Matter . | . . . Retrieved Components . | . . . Parts Scanalyzed . | . . . Part Schematics Acquired . | . . . Parts Damaged . | . . . Bothacking | -11 -10 -9 ------------ Run | Yrd Mat Mat Used RIF Installer . | . . . Robots Hacked . | . . . Non-combat . | . . . Combat . | . . . Robot Hacks Applied . | . . . Relay Couplers Released . | . . . Fabnet Peak Effective % . | . . . Robots Rewired . | . . . Allies Hacked . | . . . Hacks Repelled . | . . . Allies | -11 -10 -9 -------- Run | Yrd Mat Mat Total Allies . | . . . Largest Group . | . . . Highest-Rated Group . | . . . Highest-Rated Ally . | . . . Total Orders . | . . . Ally Attacks . | . . . Total Damage . | . . . Kills . | . . . Allies Corrupted . | . . . Allies Melted . | . . . Intel | -11 -10 -9 ------- Run | Yrd Mat Mat Active Infowar (turns) 514 | 23 371 120 Terrain 514 | 23 371 120 Structural 315 | . 195 120 Robot Analysis Total . | . . . Derelict Logs Recovered . | . . . Drone Launches . | . . . Drone Recoveries . | . . . Exploration | -11 -10 -9 ------------- Run | Yrd Mat Mat Turns Passed 583 | 92 371 120 Spaces Moved 326 | 52 193 81 Core 3 | 3 . . Treads . | . . . Legs 323 | 49 193 81 Wheels . | . . . Hover . | . . . Flight . | . . . Fastest Speed 50 | 50 120 120 Average Speed 119 | 115 120 120 Slowest Speed 120 | 120 120 120 Overloaded Moves . | . . . Propulsion Burnouts . | . . . Robots Hopped . | . . . Potential Cave-ins . | . . . Cave-ins Triggered . | . . . Exploration Rate (%) 21 | 4 46 13 Regions Visited 2 Branch Regions . Pre-discovered Areas . | . . . Known Exits Taken . | . . . Unknown Exits Taken 2 | 1 1 . Scrap Searched . | . . . Spaces Dug . | . . . Terrain Destroyed . | . . . Melee . | . . . Projectile . | . . . AOE . | . . . Terrain Rammed . | . . . Walls Destroyed . | . . . Machines Disabled . | . . . Actions | -11 -10 -9 --------- Run | Yrd Mat Mat Total 435 | 69 272 94 Wait 4 | . 2 2 Move 324 | 51 192 81 Hop . | . . . Pick Up . | . . . Fast Attach 8 | 6 2 . Attach . | . . . Detach . | . . . Swap 3 | 1 2 . Drop 1 | . 1 . Fire 89 | 11 67 11 Melee . | . . . Ram . | . . . Kick . | . . . Crush . | . . . Escape Stasis . | . . . Rewire . | . . . Trap . | . . . Miscellaneous 6 | . 6 . Route ------- -11/Scrapyard -10/Materials (discovered 2 exits: [*Mat] / [Sub]) -9/Materials (discovered 1 exit: [Sto]) History --------- Turn | Location | Event 1 | -11/Scrapyard | Upgraded with Power slot (x1) 1 | -11/Scrapyard | Upgraded with Propulsion slot (x1) 1 | -11/Scrapyard | Upgraded with Utility slot (x1) 2 | -11/Scrapyard | Discovered new exit (range 17) 93 | -11/Scrapyard | Entered Materials 120 | -10/Materials | Discovered new exit (range 13) 312 | -10/Materials | Build established: Mutant 427 | -10/Materials | Discovered new exit (range 19) 437 | -10/Materials | Core integrity fell below 50% 464 | -10/Materials | Entered another Materials area 465 | -9/Materials | Core integrity fell below 50% 466 | -9/Materials | Reached level 2 572 | -9/Materials | Core integrity fell below 20% 576 | -9/Materials | Discovered new exit (range 9) 584 | -9/Materials | Destroyed by S-10 Pest with Light Assault Rifle Last Messages --------------- 00405_ W-16 Scout sends out distress signal. 00406_ W-16 Scout destroyed. 00414_ K-01 Serf collects debris. 00417_ Overheating: System interference. 00417_ Particle Cannon temporarily disabled. 00427_ EXIT=FOUND 00431_ K-01 Serf collects debris. 00445_ S-10 Pest destroyed. 00446_ Overheating: Energy bleed (-16). 00449_ K-01 Serf collects debris. 00450_ Power failure, Lgt. Ion Engine shutdown. 00452_ K-01 Serf collects debris. LOCATION=UNKNOWN GOAL=ESCAPE 00466_ Reached level 2. 00466_ Upgraded: Ranged Accuracy (+15) 00576_ EXIT=FOUND 00579_ Overheating: Energy bleed (-17). 00584_ Power failure, Lgt. Ion Engine shutdown. 00584_ S-10 Pest destroyed. Map ----- +----------------------------------------------------+ | ?????????????????????????????????????????????? | | ?????????????????????????????????????????????? | | ?????????????????????????????????????????????? | | ?????????????????????????????????????????????? | | ?????????????????????????????????????????????? | | ?????????????????????????????????????????????? | | ?????????????????????????????????????????????? | | ??????????????????????? ##??????????????????? | | ?????????????????????? ##??????????????????? | | ?????????????????????# ##??????????????????? | | ????????????????#??### ##????? # ??????????? | | ??????????????##?##?## ##?#? ##??????????? | | ?????????????##?##?### ####? ##??????????? | | ????????????####?##### #### ## ?????????? | | ??????????#???#?#???## #### ## ?????????? | | ??????????#?#?#??##### # ?????????? | | ?????????##?#??????### # ?????????? | | ?????????#???##????### + ?????????? | | ???????????##?#?#?#### # ?????????? | | ???????####?#??#??#### ! # ?????????? | | ????????##??#?###??###[ r! s ##?# ????????? | | ??????????###??##?### = % ####?#????????? | | ??????##??####?#?#### *%[ ? ?? ? ????????? | | ??????#???###?#????## ss ? /? "???"??????? | | ???????###??##?#?#?## ##?+???#?""?"?"??????? | | ??????#?#####?##?####@ # ? ? ?? ???"????????? | | ???????#?#?#?###?#### # ? ?? ??????????? | | ??????#####?#?##?#?## # ? ###?#?#????????? | | ????#??##?##?######## # ?? ?##? ? ????????? | | ???????#?##???##??### # ? ###? ?? ???????? | | ??#??##?####?##??#?## # + ? ???????? | | ??#?#???#####????#### # < ?# ? ???????????? | | ??#?#??##?########### # ??? ?? ?????????? | | ????#???#?########### # ??? ?????????? | | ??????#?#?## #### # ?#? ???????????? | | ?####?##?### # ? #? ??? ????????? | | ??#?#####?## " # ?#??? ??????????? | | ??#####?#### ##?##?? ? ???????????? | | ?#??#?###### ###########?##? ????????????? | | ???##?#??#### ############# ?????????????? | | #?#?######### ############? ??? ??????? | | #??########## ###########?# ???? ???????? | | #??#######?## #############? ? ?????????? | | ?#?#?####?### # #### ??? ? ?????????? | | ############# # = "" #### ??"????????????? | | #???######### # T" #### ??"????#???????? | | ??#?## # "" ####? ?"????#???????? | | ###### + #### ??"?? ?? ?????? | | ###### # """ #### """ ?? | | ###### #### # """ ^+ ?? | +----------------------------------------------------+ Best States ------------- Heat Dissipation 25 Energy Generation 15 Energy Capacity 150 Matter Stores 300 Matter Capacity 300 Sight Range 19 Robot Scan Range 4 Terrain Scan Range 16 Terrain Scan Density 210 Evasion (%) 55 Item Schematics ----------------- None Robot Schematics ------------------ None Fabricated ------------ Nothing Repaired ---------- Nothing Studied --------- None Alien Tech Used ----------------- None Achievements -------------- None Challenges ------------ None RPGLIKE | -11 -10 -9 --------- Run | Yrd Mat Mat Levels Raised 1 | . . 1 XP Earned 5550 | 3000 950 1600 XP Spent 4465 | 2965 . 1500 Upgrades 19 | 16 . 3 Power Slot 1 | 1 . . Propulsion Slot 1 | 1 . . Utility Slot 1 | 1 . . Core Integrity 6 | 6 . . Sight Range 3 | 3 . . Sensor Range 2 | 2 . . Terrain Scan Density 2 | 2 . . Ranged Accuracy 3 | . . 3 Protomatter Created 119 | . 108 11 Integrity Restored 141 | . 141 . Core 141 | . 141 . Protomatter Decayed . | . . . Game ------ Seed AmyLove Manual? 1 Play Time 00:09:48 Cumulative 32.8 hours Start 2026.03.21 @ 22:12:05 End 2026.03.21 @ 22:21:15 Sessions 1 Manual Loads 0 Difficulty Rogue Special Mode Winter2019/RPGLIKE Game No. 23 Rogue 20 Adventurer 0 Explorer 3 Win Type - Total 3 Types 1/0/0/2/0/0/0/0/0/0 Lore% 17 Gallery% 25 Achievement% 31 Wizard Run 0 Options --------- Layout 0 ASCII 0 Keyboard 1 Movement Numpad Keybinds 0 Fullscreen 1 Font 20/Smallcaps Map View 66x50 Zoom Use 0% Tactical HUD 1 Map Filters NONE Filters NONE Steam 1 RUN: 9076ea8d-d180-4d1f-8cb9-36d3af10c932